bitfinex/quotes_BTCUSD_20230108
["timestamp","ask_amount","ask_price","bid_price","bid_amount"]
[1673179419187,2.74409193,16951.0,16950.0,1.82252825]
[1673179419699,2.74411079,16951.0,16950.0,1.82252825]
[1673179419920,2.21323741,16951.0,16950.0,1.82252825]
[1673179420686,2.74404291,16951.0,16950.0,1.82252825]
[1673179421200,2.74404291,16951.0,16950.0,1.45454325]
[1673179421911,2.74404291,16951.0,16950.0,1.82252825]
[1673179422166,2.21323741,16951.0,16950.0,1.82252825]
[1673179422427,2.74399642,16951.0,16950.0,1.82252825]
[1673179424450,2.74399642,16951.0,16950.0,1.45454325]
[1673179424701,2.74399642,16951.0,16950.0,1.82252825]
[1673179425487,2.74399642,16951.0,16950.0,1.16954982]
[1673179425738,2.74399642,16951.0,16950.0,0.64685969]
[1673179426254,2.74399642,16951.0,16950.0,1.01484469]
[1673179426501,2.74399642,16951.0,16950.0,0.64685969]
[1673179426753,2.74399642,16951.0,16950.0,1.01484469]
[1673179427518,2.74399642,16951.0,16950.0,0.64685969]
[1673179427740,2.74399642,16951.0,16950.0,1.01484469]
[1673179427963,2.74399642,16951.0,16950.0,0.64685969]
[1673179428210,2.74399642,16951.0,16950.0,1.01484469]
[1673179429201,2.74399642,16951.0,16950.0,1.0151285]
[1673179429695,2.74390662,16951.0,16950.0,1.0151285]
[1673179429967,2.74390662,16951.0,16950.0,1.18113505]
[1673179430772,2.74390662,16951.0,16950.0,1.18085124]
[1673179430999,2.74390662,16951.0,16950.0,1.01484469]
[1673179431500,2.74390662,16951.0,16950.0,0.64685969]
[1673179433170,2.74390662,16951.0,16950.0,1.01484469]
[1673179435878,2.74390662,16951.0,16950.0,0.64685969]
[1673179438744,2.2485643,16951.0,16950.0,0.64685969]
[1673179439427,2.84569673,16951.0,16950.0,0.64685969]
[1673179440209,2.2485643,16951.0,16950.0,0.64685969]
[1673179440665,2.84569673,16951.0,16950.0,0.64685969]
[1673179440912,2.2485643,16951.0,16950.0,0.64685969]
[1673179441133,2.84569673,16951.0,16950.0,0.64685969]
[1673179442811,2.84569673,16951.0,16950.0,0.6471435]
[1673179443553,2.84569673,16951.0,16950.0,0.64685969]
[1673179447987,2.71279703,16951.0,16950.0,0.77603936]
[1673179450518,2.1241646,16951.0,16950.0,0.77603936]
[1673179452518,2.72129703,16951.0,16950.0,0.77603936]
[1673179453104,2.1241646,16951.0,16950.0,0.77603936]
[1673179453976,2.72129703,16951.0,16950.0,0.77603936]
[1673179455254,2.1241646,16951.0,16950.0,0.77603936]
[1673179457133,2.1241646,16951.0,16950.0,1.14402436]
[1673179458125,2.1241646,16951.0,16950.0,1.01484469]
[1673179458383,2.1241646,16951.0,16950.0,0.64685969]
[1673179465889,2.72094017,16951.0,16950.0,0.64685969]
[1673179467770,2.72093813,16951.0,16950.0,0.64685969]
[1673179468534,2.72091142,16951.0,16950.0,0.64685969]
[1673179470924,2.72091142,16951.0,16950.0,0.64679448]
[1673179472948,2.72091142,16951.0,16950.0,0.76874629]
[1673179474621,2.72091142,16951.0,16950.0,0.64679448]
[1673179474871,2.1241646,16951.0,16950.0,0.64679448]
[1673179475361,2.72094289,16951.0,16950.0,0.64679448]
[1673179478644,2.1241646,16951.0,16950.0,0.64679448]
[1673179480176,2.72105627,16951.0,16950.0,0.64679448]
[1673179480421,2.1241646,16951.0,16950.0,0.64679448]
[1673179495894,2.1241646,16951.0,16950.0,0.64667663]
[1673179512047,2.1241646,16951.0,16950.0,0.5673267]
[1673179512703,2.1241646,16951.0,16950.0,0.63935106]
[1673179513977,0.3543596,16951.0,16950.0,0.63935106]
[1673179514224,2.1241646,16951.0,16950.0,0.63935106]
[1673179520450,2.1241646,16951.0,16950.0,0.63923653]
[1673179522225,2.08874791,16951.0,16950.0,0.63923653]
[1673179522477,2.1241646,16951.0,16950.0,0.63923653]
[1673179523366,2.1241646,16951.0,16950.0,0.6391523]
[1673179525526,2.1241646,16951.0,16950.0,1.55019914]
[1673179525527,2.5459549,16951.0,16950.0,1.55019914]
[1673179526027,1.913305,16951.0,16950.0,1.31252125]
[1673179526285,1.913305,16951.0,16950.0,1.68050625]
[1673179526539,2.44397899,16951.0,16950.0,1.68050625]
[1673179526811,2.44397899,16951.0,16950.0,1.31252125]
[1673179527054,1.85404399,16951.0,16950.0,1.68050625]
[1673179527853,2.15404399,16951.0,16950.0,1.68050625]
[1673179528417,2.15404399,16951.0,16950.0,1.12639476]
[1673179528627,2.15404399,16951.0,16950.0,2.15478946]
[1673179528628,1.16706544,16951.0,16950.0,2.15478946]
[1673179528892,1.16706544,16951.0,16950.0,2.15697594]
[1673179530413,1.16706544,16951.0,16950.0,1.66359416]
[1673179530670,1.52058089,16951.0,16950.0,1.66359416]
[1673179531485,1.38558089,16951.0,16950.0,1.66259416]
[1673179531703,1.52058089,16951.0,16950.0,1.66559416]
[1673179532526,1.34348912,16951.0,16950.0,2.26712586]
[1673179534504,1.52013312,16951.0,16950.0,2.26712586]
[1673179535236,1.16661767,16951.0,16950.0,2.26712586]
[1673179537990,1.16661767,16951.0,16950.0,2.26740967]
[1673179540695,0.57668267,16951.0,16950.0,2.26740967]
[1673179542517,0.57668267,16951.0,16950.0,1.89942467]
[1673179543580,0.311644,16951.0,16950.0,1.89942467]
[1673179544589,0.311644,16951.0,16950.0,1.89935931]
[1673179545514,0.57668267,16951.0,16950.0,1.89935931]
[1673179545774,0.311644,16951.0,16950.0,1.89935931]
[1673179546035,0.57668267,16951.0,16950.0,1.89935931]
[1673179546984,0.57668267,16951.0,16950.0,1.2975438]
[1673179547242,0.87668267,16951.0,16950.0,1.2975438]
[1673179547509,1.05355412,16951.0,16950.0,1.2975438]
[1673179548051,1.64348912,16951.0,16950.0,1.2975438]
[1673179550052,1.64348912,16951.0,16950.0,1.17828634]
[1673179550553,1.64348912,16951.0,16950.0,1.17857015]
[1673179551535,1.64348912,16951.0,16950.0,1.78010185]
[1673179552880,1.64348912,16951.0,16950.0,1.17857015]
[1673179554567,2.08561956,16951.0,16950.0,1.17857015]
[1673179554848,1.64348912,16951.0,16950.0,1.17857015]
[1673179555118,2.08561956,16951.0,16950.0,1.17857015]
[1673179555409,1.64348912,16951.0,16950.0,1.17857015]
[1673179555738,2.08561956,16951.0,16950.0,1.17857015]
[1673179555997,2.08547336,16951.0,16950.0,1.17857015]
[1673179556333,1.82058089,16951.0,16950.0,1.17857015]
[1673179558662,1.82047189,16951.0,16950.0,1.35887417]
[1673179560944,1.46695644,16951.0,16950.0,1.35887417]
[1673179561205,1.82038701,16951.0,16950.0,1.35887417]
[1673179561464,1.82038701,16951.0,16950.0,1.96040587]
[1673179561735,1.46695644,16951.0,16950.0,1.35887417]
[1673179561991,1.82038323,16951.0,16950.0,1.35887417]
[1673179562241,1.46695644,16951.0,16950.0,1.35887417]
[1673179562500,1.46695644,16951.0,16950.0,1.72685917]
[1673179564481,1.024826,16951.0,16950.0,1.96040587]
[1673179564739,0.724826,16951.0,16950.0,1.96040587]
[1673179565243,0.889935,16951.0,16950.0,2.32539087]
[1673179565492,0.889935,16951.0,16950.0,2.32839087]
[1673179565493,0.989935,16951.0,16950.0,2.32839087]
[1673179566026,0.989935,16951.0,16950.0,1.72685917]
[1673179566799,0.989935,16951.0,16950.0,1.35887417]
[1673179567565,0.989935,16951.0,16950.0,1.72685917]
[1673179573375,1.52060899,16951.0,16950.0,1.72685917]
[1673179574344,0.989935,16951.0,16950.0,1.72685917]
[1673179574672,1.52050492,16951.0,16950.0,1.72685917]
[1673179574933,0.98983093,16951.0,16950.0,1.72685917]
[1673179575185,1.52050492,16951.0,16950.0,1.72685917]
[1673179576496,1.52050492,16951.0,16950.0,1.35887417]
[1673179578989,1.52050492,16951.0,16950.0,1.17857015]
[1673179580676,1.52050492,16951.0,16950.0,1.17828634]
[1673179581447,2.11043992,16951.0,16950.0,1.17828634]
[1673179581961,0.93067399,16951.0,16950.0,1.17828634]
[1673179582486,1.52060899,16951.0,16950.0,1.17828634]
[1673179583004,1.52060899,16951.0,16950.0,1.29840881]
[1673179583803,2.11054399,16951.0,16950.0,1.29840881]
[1673179584370,2.11054399,16951.0,16950.0,1.29869262]
[1673179590726,2.11054399,16951.0,16950.0,1.29840881]
[1673179593505,2.11054399,16951.0,16950.0,1.17828634]
[1673179597066,2.11054399,16951.0,16950.0,1.17822616]
[1673179597904,2.11054399,16951.0,16950.0,0.64102676]
[1673179598643,2.11054399,16951.0,16950.0,1.24255846]
[1673179599933,2.11084778,16951.0,16950.0,1.24255846]
[1673179600189,1.57987,16951.0,16950.0,1.24255846]
[1673179600468,2.1108497,16951.0,16950.0,1.24255846]
[1673179603207,1.57987,16951.0,16950.0,1.24255846]
[1673179603679,2.11076112,16951.0,16950.0,1.24255846]
[1673179604210,1.57987,16951.0,16950.0,1.24255846]
[1673179609436,1.57987,16951.0,16950.0,0.64102676]
[1673179609674,2.169805,16951.0,16950.0,0.64102676]
[1673179610645,2.20522169,16951.0,16950.0,0.64102676]
[1673179612601,2.20522169,16951.0,16950.0,1.24255846]
[1673179612841,2.20522169,16951.0,16950.0,1.61054346]
[1673179613105,2.20522169,16951.0,16950.0,1.24255846]
[1673179613361,2.20522169,16951.0,16950.0,0.64102676]
[1673179613362,2.8109549,16951.0,16950.0,0.64102676]
[1673179619352,2.8109549,16951.0,16950.0,0.64095415]
[1673179623250,2.21372169,16951.0,16950.0,0.64095415]
[1673179628528,2.8109549,16951.0,16950.0,0.64095415]
[1673179629809,2.21372169,16951.0,16950.0,0.64095415]
[1673179630804,2.8109549,16951.0,16950.0,0.64095415]
[1673179643850,2.8109549,16951.0,16950.0,0.64088099]
[1673179646600,2.21372169,16951.0,16950.0,0.64088099]
[1673179646845,2.8108553,16951.0,16950.0,0.64088099]
[1673179648383,2.21372169,16951.0,16950.0,0.64088099]
[1673179650468,2.81095961,16951.0,16950.0,1.24241269]
[1673179650723,2.81095961,16951.0,16950.0,0.64088099]
[1673179655872,2.81086984,16951.0,16950.0,0.64088099]
[1673179667493,2.21363192,16951.0,16950.0,0.64088099]
[1673179667749,2.81111319,16951.0,16950.0,1.00886599]
[1673179667964,2.81111319,16951.0,16950.0,0.64088099]
[1673179669566,2.21363192,16951.0,16950.0,0.64088099]
[1673179669807,2.21363192,16951.0,16950.0,0.63588099]
[1673179670287,2.81109005,16951.0,16950.0,0.63588099]
[1673179680674,2.81109005,16951.0,16950.0,1.00386599]
[1673179680928,2.81109005,16951.0,16950.0,1.23741269]
[1673179681179,2.81109005,16951.0,16950.0,0.63588099]
[1673179684302,2.21363192,16951.0,16950.0,0.63588099]
[1673179685799,2.81107246,16951.0,16950.0,0.63588099]
[1673179686013,2.21363192,16951.0,16950.0,0.63588099]
[1673179686470,2.81107375,16951.0,16950.0,0.63588099]
[1673179686746,2.81109188,16951.0,16950.0,0.63588099]
[1673179687248,2.81109491,16951.0,16950.0,0.63588099]
[1673179687462,2.81109499,16951.0,16950.0,0.63588099]
[1673179690560,2.81109499,16951.0,16950.0,0.63578238]
[1673179692375,2.21363192,16951.0,16950.0,0.63578238]
[1673179692643,2.21363192,16951.0,16950.0,1.00376738]
[1673179694419,2.81110338,16951.0,16950.0,1.00376738]
[1673179694648,2.81110338,16951.0,16950.0,0.63578238]
[1673179696579,2.81109314,16951.0,16950.0,0.63578238]
[1673179699386,2.21363192,16951.0,16950.0,0.63578238]
[1673179702375,2.17821523,16951.0,16950.0,0.63578238]
[1673179705724,2.21363192,16951.0,16950.0,0.63578238]
[1673179714007,2.21363192,16951.0,16950.0,0.63567503]
[1673179721483,2.21363192,16951.0,16950.0,0.56365067]
[1673179731039,2.21363192,16951.0,16950.0,0.93163567]
[1673179731793,2.21363192,16951.0,16950.0,0.56365067]
[1673179732801,2.21363192,16951.0,16950.0,1.53316737]
[1673179733046,2.21363192,16951.0,16950.0,1.16518237]
[1673179733304,2.21363192,16951.0,16950.0,1.53316737]
[1673179733569,2.81109908,16951.0,16950.0,1.53316737]
[1673179733845,2.81109908,16951.0,16950.0,1.16518237]
[1673179734313,2.21363192,16951.0,16950.0,1.16518237]
[1673179734575,2.81110185,16951.0,16950.0,1.53316737]
[1673179734824,2.81110185,16951.0,16950.0,1.16518237]
[1673179736463,2.81110185,16951.0,16950.0,1.53316737]
[1673179737237,2.81110185,16951.0,16950.0,1.16518237]
[1673179737579,2.81110185,16951.0,16950.0,1.22777577]
[1673179738343,2.81110185,16951.0,16950.0,1.59576077]
[1673179738595,2.81110185,16951.0,16950.0,1.22777577]
[1673179738843,2.81110185,16951.0,16950.0,1.59576077]
[1673179739337,2.81110185,16951.0,16950.0,1.59568289]
[1673179741394,2.81110185,16951.0,16950.0,1.22769789]
[1673179741656,2.81110185,16951.0,16950.0,0.62616619]
[1673179743902,2.81110185,16951.0,16950.0,1.22769789]
[1673179746094,2.81110185,16951.0,16950.0,0.62616619]
[1673179746351,2.81110185,16951.0,16950.0,1.22769789]
[1673179748296,2.81110185,16951.0,16950.0,0.62616619]
[1673179749923,2.81103833,16951.0,16950.0,0.62616619]
[1673179763551,2.2135684,16951.0,16950.0,0.62616619]
[1673179771392,2.81104617,16951.0,16950.0,0.62616619]
[1673179771657,2.2135684,16951.0,16950.0,0.62616619]
[1673179772889,2.2135684,16951.0,16950.0,0.62610567]
[1673179779734,2.81106921,16951.0,16950.0,0.62610567]
[1673179780405,2.2135684,16951.0,16950.0,0.62610567]
[1673179781919,2.2135684,16951.0,16950.0,1.59562237]
[1673179783480,2.81106069,16951.0,16950.0,1.59562237]
[1673179783694,2.81105969,16951.0,16950.0,1.22763737]
[1673179783952,2.81105969,16951.0,16950.0,0.62610567]
[1673179784211,2.81106387,16951.0,16950.0,0.62610567]
[1673179792246,2.81108574,16951.0,16950.0,0.62610567]
[1673179792485,2.2135684,16951.0,16950.0,0.62610567]
[1673179792971,2.17815171,16951.0,16950.0,0.62610567]
[1673179793230,2.2135684,16951.0,16950.0,0.62610567]
[1673179796045,2.2135684,16951.0,16950.0,0.62599882]
[1673179796607,2.2135684,16951.0,16950.0,0.56340542]
[1673179797495,2.2135684,16951.0,16950.0,0.64619673]
[1673179800845,2.81106654,16951.0,16950.0,0.56340542]
[1673179801100,2.81105309,16951.0,16950.0,0.56340542]
[1673179802614,2.81105309,16951.0,16950.0,0.64619673]
[1673179803864,2.2135684,16951.0,16950.0,0.64619673]
[1673179804676,2.2135684,16951.0,16950.0,0.56340542]
[1673179805709,2.2135684,16951.0,16950.0,0.64619673]
[1673179806188,2.2135684,16951.0,16950.0,1.01418173]
[1673179806705,2.2135684,16951.0,16950.0,0.93139042]
[1673179807959,2.8110384,16951.0,16950.0,0.93139042]
[1673179808209,2.8110384,16951.0,16950.0,0.56340542]
[1673179810136,2.2135684,16951.0,16950.0,0.56340542]
[1673179810379,2.81104726,16951.0,16950.0,0.56340542]
[1673179811668,2.81104726,16951.0,16950.0,1.16493712]
[1673179811911,2.81104726,16951.0,16950.0,1.61982789]
[1673179812197,2.81104726,16951.0,16950.0,1.84074777]
[1673179812674,2.81104726,16951.0,16950.0,1.01829619]
[1673179812912,2.81104726,16951.0,16950.0,0.65031119]
[1673179814141,2.81104726,16951.0,16950.0,1.01829619]
[1673179815300,2.81104726,16951.0,16950.0,0.65031119]
[1673179817644,2.81104726,16951.0,16950.0,0.56340542]
[1673179817892,2.81104726,16951.0,16950.0,0.56331865]
[1673179818140,2.81104726,16951.0,16950.0,0.93130365]
[1673179818632,2.81104726,16951.0,16950.0,1.01820942]
[1673179818881,2.81104726,16951.0,16950.0,0.65022442]
[1673179819885,2.81104726,16951.0,16950.0,1.01820942]
[1673179820612,2.81104726,16951.0,16950.0,0.65022442]
[1673179823423,2.81104726,16951.0,16950.0,1.01820942]
[1673179824412,2.81104726,16951.0,16950.0,0.65022442]
[1673179825609,2.81104726,16951.0,16950.0,0.56331865]
[1673179826667,2.81104726,16951.0,16950.0,1.01820942]
[1673179827444,2.81104726,16951.0,16950.0,1.61974112]
[1673179828211,2.81104726,16951.0,16950.0,1.25175612]
[1673179828502,2.81104726,16951.0,16950.0,1.01820942]
[1673179829440,2.81104726,16951.0,16950.0,1.61974112]
[1673179830467,2.81104726,16951.0,16950.0,1.25175612]
[1673179830713,2.81104726,16951.0,16950.0,1.01820942]
[1673179830964,2.81104726,16951.0,16950.0,1.61974112]
[1673179831482,2.81104726,16951.0,16950.0,1.25175612]
[1673179831740,2.81104726,16951.0,16950.0,1.01820942]
[1673179831985,2.81104726,16951.0,16950.0,1.61974112]
[1673179832238,2.81104726,16951.0,16950.0,1.25175612]
[1673179832490,2.81104726,16951.0,16950.0,1.61974112]
[1673179832988,2.81104726,16951.0,16950.0,1.25175612]
[1673179833240,2.81104726,16951.0,16950.0,1.61974112]
[1673179834219,2.81104726,16951.0,16950.0,1.25175612]
[1673179834466,2.81104726,16951.0,16950.0,1.01820942]
[1673179834720,2.81104726,16951.0,16950.0,1.61974112]
[1673179834932,2.81104726,16951.0,16950.0,1.01820942]
[1673179835466,2.81104726,16951.0,16950.0,1.61974112]
[1673179836437,2.81104726,16951.0,16950.0,1.25175612]
[1673179836687,2.81104726,16951.0,16950.0,1.01820942]
[1673179838714,2.81104726,16951.0,16950.0,1.0181118]
[1673179842626,2.81104726,16951.0,16950.0,0.6501268]
[1673179842855,2.81104726,16951.0,16950.0,1.0181118]
[1673179844862,2.81104726,16951.0,16950.0,0.6501268]
[1673179845366,2.81104726,16951.0,16950.0,1.0181118]
[1673179846767,2.81104726,16951.0,16950.0,1.6196435]
[1673179847264,2.81104726,16951.0,16950.0,1.2516585]
[1673179847512,2.81104726,16951.0,16950.0,1.6196435]
[1673179848190,2.81104726,16951.0,16950.0,1.2516585]
[1673179848412,2.81104726,16951.0,16950.0,1.0181118]
[1673179850514,2.81104726,16951.0,16950.0,0.6501268]
[1673179850761,2.81104726,16951.0,16950.0,1.0181118]
[1673179851300,2.81116072,16951.0,16950.0,1.0181118]
[1673179851536,2.2135684,16951.0,16950.0,0.6501268]
[1673179851777,2.81116131,16951.0,16950.0,1.0181118]
[1673179851998,2.81116131,16951.0,16950.0,0.6501268]
[1673179852505,2.2135684,16951.0,16950.0,0.6501268]
[1673179852725,2.2135684,16951.0,16950.0,1.0181118]
[1673179860665,2.81111067,16951.0,16950.0,1.0181118]
[1673179860908,2.81111067,16951.0,16950.0,0.6501268]
[1673179862902,2.81111067,16951.0,16950.0,0.65005025]
[1673179863149,2.2135684,16951.0,16950.0,0.65005025]
[1673179863391,2.2135684,16951.0,16950.0,1.01803525]
[1673179863639,2.81110293,16951.0,16950.0,1.01803525]
[1673179863885,2.2135684,16951.0,16950.0,0.65005025]
[1673179864132,2.2135684,16951.0,16950.0,1.01803525]
[1673179865395,2.81110353,16951.0,16950.0,1.01803525]
[1673179865652,2.2135684,16951.0,16950.0,0.65005025]
[1673179865894,2.2135684,16951.0,16950.0,1.01803525]
[1673179869012,2.2135684,16951.0,16950.0,0.65005025]
[1673179887727,2.2135684,16951.0,16950.0,0.64996029]
[1673179905132,2.2135684,16951.0,16950.0,0.64753329]
[1673179920335,2.17815171,16951.0,16950.0,0.64753329]
[1673179921335,2.17815171,16951.0,16950.0,1.01551829]
[1673179921587,2.17815171,16951.0,16950.0,1.24906499]
[1673179921835,2.17815171,16951.0,16950.0,0.64753329]
[1673179926872,2.17815171,16951.0,16950.0,0.64746335]
[1673179928201,2.7753589,16951.0,16950.0,0.64746335]
[1673179928457,2.77533062,16951.0,16950.0,0.64746335]
[1673179928702,2.17815171,16951.0,16950.0,0.64746335]
[1673179941449,2.77532789,16951.0,16950.0,0.64746335]
[1673179941680,2.77533042,16951.0,16950.0,0.64746335]
[1673179943150,2.77534659,16951.0,16950.0,0.64746335]
[1673179944087,2.17815171,16951.0,16950.0,0.64746335]
[1673179946690,2.17815171,16951.0,16950.0,0.56055758]
[1673179947702,2.17815171,16951.0,16950.0,0.6434409]
[1673179948469,2.77540356,16951.0,16950.0,0.6434409]
[1673179949570,2.77540356,16951.0,16950.0,0.56055758]
[1673179950071,2.77540356,16951.0,16950.0,0.56044577]
[1673179951048,2.77540356,16951.0,16950.0,0.56072958]
[1673179951311,2.77540356,16951.0,16950.0,0.56044577]
[1673179951710,2.77540356,16951.0,16950.0,0.64332909]
[1673179951975,2.17815171,16951.0,16950.0,0.64332909]
[1673179955690,2.17815171,16951.0,16950.0,0.56044577]
[1673179957225,2.2135684,16951.0,16950.0,0.56044577]
[1673179958476,2.81101231,16951.0,16950.0,0.56044577]
[1673179959458,2.2135684,16951.0,16950.0,0.56044577]
[1673179959685,2.81101455,16951.0,16950.0,0.56044577]
[1673179959926,2.2135684,16951.0,16950.0,0.56044577]
[1673179960394,2.81100534,16951.0,16950.0,0.56044577]
[1673179960672,2.81100534,16951.0,16950.0,0.64332909]
[1673179961139,2.2135684,16951.0,16950.0,0.64332909]
[1673179961396,2.81100326,16951.0,16950.0,0.64332909]
[1673179963117,2.2135684,16951.0,16950.0,0.64332909]
[1673179963413,2.81098406,16951.0,16950.0,0.64332909]
[1673179967654,2.2135684,16951.0,16950.0,0.64332909]
[1673179969868,2.81095589,16951.0,16950.0,0.64332909]
[1673179971359,2.81095589,16951.0,16950.0,0.64322188]
[1673179977428,2.2135684,16951.0,16950.0,0.64322188]
[1673179981776,2.81102303,16951.0,16950.0,0.64322188]
[1673179982762,2.81102303,16951.0,16950.0,1.24475358]
[1673179983021,2.81102303,16951.0,16950.0,0.64322188]
[1673179984102,2.81102303,16951.0,16950.0,1.61273858]
[1673179984614,2.81102303,16951.0,16950.0,1.24475358]
[1673179984826,2.81102303,16951.0,16950.0,0.64322188]
[1673179989327,2.2135684,16951.0,16950.0,0.64322188]
[1673179990865,2.81101242,16951.0,16950.0,0.64322188]
[1673179991357,2.2135684,16951.0,16950.0,0.64322188]
[1673179994630,2.2135684,16951.0,16950.0,0.64314105]
[1673180003100,2.21350274,16951.0,16950.0,0.64314105]
[1673180006649,2.78966435,16951.0,16950.0,0.64314105]
[1673180007122,2.21350274,16951.0,16950.0,0.64314105]
[1673180007370,2.78994046,16951.0,16950.0,0.64314105]
[1673180007620,2.79016575,16951.0,16950.0,0.64314105]
[1673180008209,2.21350274,16951.0,16950.0,0.64314105]
[1673180011448,2.21350274,16951.0,16950.0,0.76990216]
[1673180013442,2.21350274,16951.0,16950.0,0.64314105]
[1673180017632,2.17808605,16951.0,16950.0,0.64314105]
[1673180017881,2.21350274,16951.0,16950.0,0.64314105]
[1673180018672,2.79013896,16951.0,16950.0,0.64314105]
[1673180019167,2.21350274,16951.0,16950.0,0.64314105]
[1673180026183,2.21350274,16951.0,16950.0,0.6430695]
[1673180038526,2.21350274,16951.0,16950.0,0.76982345]
[1673180038785,2.21350274,16951.0,16950.0,1.6125862]
[1673180039783,2.21350274,16951.0,16950.0,1.2446012]
[1673180040026,2.21350274,16951.0,16950.0,1.6125862]
[1673180040277,2.21350274,16951.0,16950.0,1.2446012]
[1673180042587,2.21350274,16951.0,16950.0,0.6430695]
[1673180042838,2.21350274,16951.0,16950.0,1.2446012]
[1673180043096,2.81075872,16951.0,16950.0,1.2446012]
[1673180045113,2.81075872,16951.0,16950.0,0.6430695]
[1673180048369,2.81075872,16951.0,16950.0,0.64296081]
[1673180055359,2.81075872,16951.0,16950.0,1.24449251]
[1673180056587,2.81075872,16951.0,16950.0,0.64296081]
[1673180059622,2.21350274,16951.0,16950.0,0.64296081]
[1673180068819,2.21350274,16951.0,16950.0,0.64284191]
[1673180071300,2.21350274,16951.0,16950.0,0.64312572]
[1673180071554,2.21350274,16951.0,16950.0,0.64284191]
[1673180093357,2.21350274,16951.0,16950.0,0.64273177]
[1673180098791,2.79064718,16951.0,16950.0,0.64273177]
[1673180099033,2.21350274,16951.0,16950.0,0.64273177]
[1673180105861,2.79041876,16951.0,16950.0,0.64273177]
[1673180106432,2.21350274,16951.0,16950.0,0.64273177]
[1673180107109,2.79062951,16951.0,16950.0,0.64273177]
[1673180107355,2.21350274,16951.0,16950.0,0.64273177]
[1673180107855,2.17808605,16951.0,16950.0,0.64273177]
[1673180108117,2.21350274,16951.0,16950.0,0.64273177]
[1673180116685,2.21350274,16951.0,16950.0,0.64264656]
[1673180121451,2.21340222,16951.0,16950.0,0.64264656]
[1673180123737,2.21340222,16951.0,16950.0,0.55976324]
[1673180125831,2.21340222,16951.0,16950.0,0.63716948]
[1673180131757,2.21340222,16951.0,16950.0,0.55976324]
[1673180145027,2.21340222,16951.0,16950.0,0.55969033]
[1673180153838,2.21340222,16951.0,16950.0,0.67810637]
[1673180155450,2.21340222,16951.0,16950.0,0.55969033]
[1673180165193,2.21340222,16951.0,16950.0,0.55957986]
[1673180182703,0.44359722,16951.0,16950.0,0.55957986]
[1673180183029,1.32378669,16951.0,16950.0,0.55957986]
[1673180183204,2.21372169,16951.0,16950.0,0.55957986]
[1673180184952,2.21360752,16951.0,16950.0,0.55957986]
[1673180185975,2.21360752,16951.0,16950.0,0.67798485]
[1673180186764,2.21360752,16951.0,16950.0,0.55957986]
[1673180197781,2.17819083,16951.0,16950.0,0.55957986]
[1673180198022,2.21360752,16951.0,16950.0,0.55957986]
[1673180207534,2.21360752,16951.0,16950.0,0.55950913]
[1673180211727,2.21354579,16951.0,16950.0,0.55950913]
[1673180211977,2.21354579,16951.0,16950.0,0.67790705]
[1673180216173,2.21354579,16951.0,16950.0,0.55950913]
[1673180236300,2.21354579,16951.0,16950.0,0.55942321]
[1673180241029,2.21354579,16951.0,16950.0,0.47329227]
[1673180259549,2.21354579,16951.0,16950.0,0.47339195]
[1673180259799,2.21354579,16951.0,16950.0,1.07268297]
[1673180260054,2.21354579,16951.0,16950.0,1.25070783]
[1673180260317,2.21354579,16951.0,16950.0,0.65131713]
[1673180260568,2.21354579,16951.0,16950.0,1.25080751]
[1673180260835,2.21354579,16951.0,16950.0,1.25070783]
[1673180261541,2.21354579,16951.0,16950.0,1.07268297]
[1673180262043,2.21354579,16951.0,16950.0,0.47329227]
[1673180262831,2.21354579,16951.0,16950.0,0.4751915]
[1673180263072,2.21354579,16951.0,16950.0,0.47329227]
[1673180263794,2.21354579,16951.0,16950.0,0.47322052]
[1673180264055,2.21354579,16951.0,16950.0,0.59129914]
[1673180264298,2.21354579,16951.0,16950.0,0.47322052]
[1673180273107,2.21354579,16951.0,16950.0,0.47341018]
[1673180273580,2.21354579,16951.0,16950.0,0.47322052]
[1673180274267,2.21354579,16951.0,16950.0,0.47341018]
[1673180274510,2.21354579,16951.0,16950.0,0.47322052]
[1673180277196,2.21354579,16951.0,16950.0,0.58277548]
[1673180277692,2.21354579,16951.0,16950.0,0.47322052]
[1673180278173,2.81055693,16951.0,16950.0,0.47341018]
[1673180278406,2.21354579,16951.0,16950.0,0.47322052]
[1673180278855,2.81055892,16951.0,16950.0,0.47322052]
[1673180279398,2.81053115,16951.0,16950.0,0.47322052]
[1673180280172,2.81053465,16951.0,16950.0,0.47322052]
[1673180281182,2.21354579,16951.0,16950.0,0.47322052]
[1673180281950,2.81054812,16951.0,16950.0,1.07261122]
[1673180282202,2.81054812,16951.0,16950.0,0.47322052]
[1673180284039,2.21354579,16951.0,16950.0,0.47322052]
[1673180284295,2.81054298,16951.0,16950.0,0.47322052]
[1673180284550,2.21354579,16951.0,16950.0,0.47322052]
[1673180285877,2.81055173,16951.0,16950.0,0.4731539]
[1673180287680,2.21354579,16951.0,16950.0,0.4731539]
[1673180287937,2.1781291,16951.0,16950.0,0.4731539]
[1673180288197,2.21354579,16951.0,16950.0,0.4731539]
[1673180289968,2.81056458,16951.0,16950.0,0.4731539]
[1673180290719,2.21354579,16951.0,16950.0,0.4731539]
[1673180292984,2.21354579,16951.0,16950.0,0.8411389]
[1673180293755,2.21354579,16951.0,16950.0,0.4731539]
[1673180294013,2.21354579,16951.0,16950.0,0.8411389]
[1673180294517,2.21354579,16951.0,16950.0,0.4731539]
[1673180295532,2.21354579,16951.0,16950.0,0.58270219]
[1673180295778,2.21354579,16951.0,16950.0,1.55007789]
[1673180296547,2.81068257,16951.0,16950.0,1.55007789]
[1673180296800,2.21354579,16951.0,16950.0,1.18209289]
[1673180297044,2.21354579,16951.0,16950.0,1.55007789]
[1673180297295,2.81074971,16951.0,16950.0,1.55007789]
[1673180297804,2.81074971,16951.0,16950.0,1.18209289]
[1673180299092,2.81074971,16951.0,16950.0,1.0725446]
[1673180308905,2.81074971,16951.0,16950.0,1.07244671]
[1673180313122,2.81074971,16951.0,16950.0,0.47305601]
[1673180314464,2.81074971,16951.0,16950.0,1.07244671]
[1673180314709,2.81074971,16951.0,16950.0,0.47305601]
[1673180315237,2.81074971,16951.0,16950.0,1.07244671]
[1673180315449,2.81074971,16951.0,16950.0,0.47305601]
[1673180316201,2.81074971,16951.0,16950.0,1.07244671]
[1673180316457,2.81074971,16951.0,16950.0,1.44062584]
[1673180316720,2.81074971,16951.0,16950.0,1.44043171]
[1673180316954,2.81074971,16951.0,16950.0,1.50481135]
[1673180317215,2.81074971,16951.0,16950.0,1.13682635]
[1673180317959,2.81074971,16951.0,16950.0,1.07244671]
[1673180318899,2.81074971,16951.0,16950.0,1.13682635]
[1673180319670,2.81074971,16951.0,16950.0,0.53743565]
[1673180319925,2.81074971,16951.0,16950.0,0.47305601]
[1673180320195,2.81074971,16951.0,16950.0,1.07244671]
[1673180320634,2.81074971,16951.0,16950.0,1.07264084]
[1673180320883,2.81074971,16951.0,16950.0,0.47305601]
[1673180321406,2.81074971,16951.0,16950.0,1.44043171]
[1673180321910,2.81074971,16951.0,16950.0,1.50481135]
[1673180322867,2.81074971,16951.0,16950.0,1.07244671]
[1673180323120,2.81074971,16951.0,16950.0,1.44043171]
[1673180323617,2.81074971,16951.0,16950.0,1.07244671]
[1673180323869,2.81074971,16951.0,16950.0,1.13682635]
[1673180324087,2.81074971,16951.0,16950.0,0.53743565]